[Event "Live Chess"]
[Site "Chess.com"]
[Date "2024.06.01"]
[Round "-"]
[White "Dhaydon19"]
[Black "TedUdale"]
[Result "1-0"]
[WhiteElo "2678"]
[BlackElo "2126"]
[TimeControl "300"]
[EndTime "15:08:33 PDT"]
[Termination "Dhaydon19 won by resignation"]

1. d4 {[%clk 0:04:57.7]} 1... d5 {[%clk 0:04:59]} 2. Nf3 {[%clk 0:04:57.3]} 2...
e6 {[%clk 0:04:58.2]} 3. g3 {[%clk 0:04:56.9]} 3... Nf6 {[%clk 0:04:57.5]} 4.
Bg2 {[%clk 0:04:56.6]} 4... Bd6 {[%clk 0:04:56.4]} 5. O-O {[%clk 0:04:56.3]}
5... O-O {[%clk 0:04:55.8]} 6. c3 {[%clk 0:04:55.7]} 6... c5 {[%clk 0:04:53.8]}
7. Qc2 {[%clk 0:04:55.4]} 7... cxd4 {[%clk 0:04:52.7]} 8. Nxd4 {[%clk 0:04:55]}
8... Nc6 {[%clk 0:04:50.1]} 9. Nxc6 {[%clk 0:04:54.1]} 9... bxc6 {[%clk
0:04:49.4]} 10. Nd2 {[%clk 0:04:53.8]} 10... e5 {[%clk 0:04:45.9]} 11. e4 {[%clk
0:04:51.7]} 11... Ba6 {[%clk 0:04:41.4]} 12. Re1 {[%clk 0:04:50.2]} 12... Re8
{[%clk 0:04:40.9]} 13. exd5 {[%clk 0:04:48.7]} 13... cxd5 {[%clk 0:04:40.2]} 14.
Nf3 {[%clk 0:04:47.2]} 14... Rc8 {[%clk 0:04:38.5]} 15. Bg5 {[%clk 0:04:45.1]}
15... h6 {[%clk 0:04:35]} 16. Bxf6 {[%clk 0:04:42.4]} 16... Qxf6 {[%clk
0:04:34.1]} 17. Qa4 {[%clk 0:04:38.4]} 17... Bd3 {[%clk 0:04:02.9]} 18. Rad1
{[%clk 0:04:32.7]} 18... e4 {[%clk 0:04:01.9]} 19. Nd4 {[%clk 0:04:31.2]} 19...
Bc5 {[%clk 0:03:56.7]} 20. Rxd3 {[%clk 0:04:28.4]} 20... exd3 {[%clk 0:03:33.2]}
21. Rxe8+ {[%clk 0:04:25.9]} 21... Rxe8 {[%clk 0:03:33.1]} 22. Qxe8+ {[%clk
0:04:24.9]} 22... Kh7 {[%clk 0:03:29.8]} 23. Qe3 {[%clk 0:04:23.1]} 1-0

[Event "Live Chess"]
[Site "Chess.com"]
[Date "2024.06.01"]
[Round "-"]
[White "jimwad"]
[Black "asingardenof"]
[Result "1-0"]
[WhiteElo "1289"]
[BlackElo "615"]
[TimeControl "300"]
[EndTime "15:08:44 PDT"]
[Termination "jimwad won on time"]

1. d4 {[%clk 0:04:58.1]} 1... Nf6 {[%clk 0:04:58]} 2. c4 {[%clk 0:04:57]} 2...
g6 {[%clk 0:04:57.9]} 3. Nc3 {[%clk 0:04:56]} 3... Bg7 {[%clk 0:04:57.8]} 4. Nf3
{[%clk 0:04:54.9]} 4... Nc6 {[%clk 0:04:55.7]} 5. e4 {[%clk 0:04:49.2]} 5... d6
{[%clk 0:04:55.6]} 6. Be3 {[%clk 0:04:48.2]} 6... O-O {[%clk 0:04:53.5]} 7. Bd3
{[%clk 0:04:46.8]} 7... h6 {[%clk 0:04:44]} 8. a3 {[%clk 0:04:45.7]} 8... g5
{[%clk 0:04:43.9]} 9. d5 {[%clk 0:04:44.4]} 9... Bg4 {[%clk 0:04:41.6]} 10. dxc6
{[%clk 0:04:39.9]} 10... bxc6 {[%clk 0:04:37.7]} 11. b3 {[%clk 0:04:32.9]} 11...
c5 {[%clk 0:04:33.3]} 12. Be2 {[%clk 0:04:29.6]} 12... e5 {[%clk 0:04:30.4]} 13.
h3 {[%clk 0:04:27.5]} 13... Bh5 {[%clk 0:04:28.2]} 14. g4 {[%clk 0:04:26]} 14...
Bg6 {[%clk 0:04:26.9]} 15. h4 {[%clk 0:04:02.9]} 15... Nxg4 {[%clk 0:04:22.1]}
16. hxg5 {[%clk 0:03:57.1]} 16... h5 {[%clk 0:04:19.5]} 17. Nd5 {[%clk
0:03:45.2]} 17... Nxe3 {[%clk 0:04:13.3]} 18. fxe3 {[%clk 0:03:31.2]} 18... f6
{[%clk 0:03:46.7]} 19. Nd2 {[%clk 0:03:00.5]} 19... f5 {[%clk 0:03:37.7]} 20.
exf5 {[%clk 0:02:58.7]} 20... Qxg5 {[%clk 0:03:18.1]} 21. e4 {[%clk 0:02:40.1]}
21... Bf7 {[%clk 0:03:00.3]} 22. Bxh5 {[%clk 0:02:33.1]} 22... Bxh5 {[%clk
0:02:57.8]} 23. Rxh5 {[%clk 0:02:31]} 23... Qg1+ {[%clk 0:02:42.3]} 24. Nf1
{[%clk 0:02:25.8]} 24... Kf7 {[%clk 0:02:30.6]} 25. Qf3 {[%clk 0:02:09.1]} 25...
Rh8 {[%clk 0:02:24.2]} 26. Ra2 {[%clk 0:01:54.3]} 26... Rxh5 {[%clk 0:02:06.4]}
27. Qxh5+ {[%clk 0:01:52.8]} 27... Kf8 {[%clk 0:02:01.6]} 28. Qh4 {[%clk
0:01:20.2]} 28... Re8 {[%clk 0:01:48.3]} 29. Rf2 {[%clk 0:01:15.7]} 29... Kg8
{[%clk 0:01:22.8]} 30. Ne7+ {[%clk 0:01:05.9]} 30... Kf8 {[%clk 0:01:07.6]} 31.
f6 {[%clk 0:00:55]} 31... a5 {[%clk 0:00:30.2]} 32. fxg7+ {[%clk 0:00:52.7]}
32... Kxg7 {[%clk 0:00:24.6]} 33. Qf6+ {[%clk 0:00:37.4]} 33... Kh7 {[%clk
0:00:21.7]} 34. Rh2+ {[%clk 0:00:28.5]} 34... Qxh2 {[%clk 0:00:16.8]} 35. Nxh2
{[%clk 0:00:27.4]} 35... Rg8 {[%clk 0:00:12.9]} 36. Qf7+ {[%clk 0:00:25.4]}
36... Rg7 {[%clk 0:00:10.2]} 37. Qf5+ {[%clk 0:00:22.7]} 37... Kh6 {[%clk
0:00:04.2]} 38. Ng4+ {[%clk 0:00:20.1]} 38... Rxg4 {[%clk 0:00:00.5]} 39. Qxg4
{[%clk 0:00:18.5]} 1-0

[Event "Live Chess"]
[Site "Chess.com"]
[Date "2024.06.01"]
[Round "-"]
[White "blunderabit"]
[Black "Rusty_Bridges"]
[Result "1-0"]
[WhiteElo "1804"]
[BlackElo "1535"]
[TimeControl "300"]
[EndTime "15:08:57 PDT"]
[Termination "blunderabit won by resignation"]

1. e4 {[%clk 0:04:57.6]} 1... d6 {[%clk 0:04:58.1]} 2. d4 {[%clk 0:04:54.1]}
2... Nf6 {[%clk 0:04:57]} 3. Nc3 {[%clk 0:04:53.2]} 3... Nbd7 {[%clk 0:04:55.7]}
4. g3 {[%clk 0:04:50.9]} 4... e5 {[%clk 0:04:54.2]} 5. Nge2 {[%clk 0:04:48.9]}
5... h6 {[%clk 0:04:50.2]} 6. Bg2 {[%clk 0:04:47.3]} 6... Be7 {[%clk 0:04:48.5]}
7. O-O {[%clk 0:04:44.8]} 7... c6 {[%clk 0:04:47.2]} 8. a4 {[%clk 0:04:41.7]}
8... Qc7 {[%clk 0:04:45.1]} 9. h3 {[%clk 0:04:39.3]} 9... Nf8 {[%clk 0:04:39.9]}
10. Be3 {[%clk 0:04:27.2]} 10... g5 {[%clk 0:04:35.5]} 11. a5 {[%clk 0:04:22]}
11... Ng6 {[%clk 0:04:28.2]} 12. Qd2 {[%clk 0:04:02.4]} 12... Bd7 {[%clk
0:03:52.1]} 13. Rfe1 {[%clk 0:03:41.6]} 13... O-O {[%clk 0:03:40.8]} 14. f4
{[%clk 0:03:30.3]} 14... exf4 {[%clk 0:03:22]} 15. gxf4 {[%clk 0:03:28.3]} 15...
gxf4 {[%clk 0:03:17]} 16. Nxf4 {[%clk 0:03:26.2]} 16... h5 {[%clk 0:02:45.1]}
17. Nxg6 {[%clk 0:03:22.3]} 17... fxg6 {[%clk 0:02:43.6]} 18. Kh1 {[%clk
0:03:09.4]} 18... d5 {[%clk 0:02:30.4]} 19. e5 {[%clk 0:03:06]} 19... Nh7 {[%clk
0:02:08.2]} 20. Bh6 {[%clk 0:03:03.4]} 20... Rf5 {[%clk 0:01:54.1]} 21. e6
{[%clk 0:02:38.7]} 21... Be8 {[%clk 0:01:18.7]} 22. Rf1 {[%clk 0:02:29.3]} 22...
Bg5 {[%clk 0:01:15.7]} 23. Bxg5 {[%clk 0:02:22.7]} 23... Rxg5 {[%clk 0:01:09.7]}
24. Qf4 {[%clk 0:02:14]} 24... Qxf4 {[%clk 0:01:03.5]} 25. Rxf4 {[%clk
0:02:13.4]} 25... Rf5 {[%clk 0:00:52.6]} 26. Rxf5 {[%clk 0:02:10.7]} 26... gxf5
{[%clk 0:00:50.4]} 27. Bf3 {[%clk 0:01:54.1]} 27... Bg6 {[%clk 0:00:46.3]} 28.
Rg1 {[%clk 0:01:49.4]} 28... Kg7 {[%clk 0:00:44.4]} 29. Bxh5 {[%clk 0:01:47.2]}
29... Nf8 {[%clk 0:00:42.3]} 30. e7 {[%clk 0:01:45.8]} 1-0

[Event "Live Chess"]
[Site "Chess.com"]
[Date "2024.06.01"]
[Round "-"]
[White "gmnorfolk"]
[Black "NeilDruggan73"]
[Result "1-0"]
[WhiteElo "2109"]
[BlackElo "1739"]
[TimeControl "300"]
[EndTime "15:09:14 PDT"]
[Termination "gmnorfolk won by resignation"]

1. d4 {[%clk 0:04:58]} 1... d6 {[%clk 0:04:58.4]} 2. e4 {[%clk 0:04:56.1]} 2...
Nf6 {[%clk 0:04:57.5]} 3. Nc3 {[%clk 0:04:55.6]} 3... g6 {[%clk 0:04:56.4]} 4.
Be3 {[%clk 0:04:54.5]} 4... Bg7 {[%clk 0:04:55.4]} 5. Nf3 {[%clk 0:04:52.9]}
5... O-O {[%clk 0:04:54.2]} 6. Qd2 {[%clk 0:04:52.5]} 6... Nc6 {[%clk
0:04:49.5]} 7. d5 {[%clk 0:04:46.9]} 7... Nb8 {[%clk 0:04:45.3]} 8. Bh6 {[%clk
0:04:45.8]} 8... Nbd7 {[%clk 0:04:43.1]} 9. h4 {[%clk 0:04:44.3]} 9... Ne5
{[%clk 0:04:40.6]} 10. Nxe5 {[%clk 0:04:40.7]} 10... dxe5 {[%clk 0:04:36.4]} 11.
h5 {[%clk 0:04:40.6]} 11... Ng4 {[%clk 0:04:26.4]} 12. Bxg7 {[%clk 0:04:38.8]}
12... Kxg7 {[%clk 0:04:22.5]} 13. hxg6 {[%clk 0:04:38.1]} 13... fxg6 {[%clk
0:04:21.3]} 14. f3 {[%clk 0:04:34]} 14... Nf6 {[%clk 0:04:02.1]} 15. O-O-O
{[%clk 0:04:30.2]} 15... a6 {[%clk 0:03:54.4]} 16. Qh6+ {[%clk 0:04:25]} 16...
Kf7 {[%clk 0:03:52.4]} 17. Bc4 {[%clk 0:04:19.9]} 17... Qd6 {[%clk 0:03:49.4]}
18. g4 {[%clk 0:04:16.2]} 18... Rh8 {[%clk 0:03:38.7]} 19. Rdf1 {[%clk
0:04:07.3]} 19... b5 {[%clk 0:03:36.7]} 20. Bb3 {[%clk 0:04:04.9]} 20... Bd7
{[%clk 0:03:32.5]} 21. f4 {[%clk 0:03:45.5]} 21... Bxg4 {[%clk 0:03:12.4]} 22.
fxe5 {[%clk 0:03:43.4]} 22... Qxe5 {[%clk 0:03:11.1]} 23. d6+ {[%clk 0:03:42.3]}
23... Be6 {[%clk 0:02:58.2]} 24. dxe7 {[%clk 0:03:38.7]} 24... Rae8 {[%clk
0:02:51.9]} 25. Nd5 {[%clk 0:03:29.8]} 25... Bxd5 {[%clk 0:02:33.8]} 26. Bxd5+
{[%clk 0:03:26.8]} 26... Kxe7 {[%clk 0:02:25.7]} 27. Qg7+ {[%clk 0:03:25.9]}
27... Kd8 {[%clk 0:02:20.2]} 28. Rxf6 {[%clk 0:03:18.8]} 28... Ref8 {[%clk
0:01:58]} 29. Rxf8+ {[%clk 0:03:15.7]} 1-0

[Event "Live Chess"]
[Site "Chess.com"]
[Date "2024.06.01"]
[Round "-"]
[White "dmitro74"]
[Black "Duke_of_Bebington"]
[Result "1-0"]
[WhiteElo "1734"]
[BlackElo "1637"]
[TimeControl "300"]
[EndTime "15:09:15 PDT"]
[Termination "dmitro74 won by resignation"]

1. d4 {[%clk 0:04:57.8]} 1... d5 {[%clk 0:04:58.9]} 2. c4 {[%clk 0:04:56.4]}
2... c6 {[%clk 0:04:56.9]} 3. Nc3 {[%clk 0:04:55]} 3... e5 {[%clk 0:04:56.1]} 4.
cxd5 {[%clk 0:04:52.5]} 4... cxd5 {[%clk 0:04:54.9]} 5. dxe5 {[%clk 0:04:51.3]}
5... d4 {[%clk 0:04:53.8]} 6. Ne4 {[%clk 0:04:49.7]} 6... Qa5+ {[%clk
0:04:52.1]} 7. Bd2 {[%clk 0:04:46]} 7... Qxe5 {[%clk 0:04:50.4]} 8. Ng3 {[%clk
0:04:44.4]} 8... Nf6 {[%clk 0:04:45.5]} 9. Nf3 {[%clk 0:04:42.6]} 9... Qd6
{[%clk 0:04:40.8]} 10. e4 {[%clk 0:04:36.2]} 10... Nc6 {[%clk 0:04:33.9]} 11.
Bb5 {[%clk 0:04:26.5]} 11... Be7 {[%clk 0:04:25.6]} 12. e5 {[%clk 0:04:24.2]}
12... Qe6 {[%clk 0:04:16.2]} 13. O-O {[%clk 0:04:15.9]} 13... Nd5 {[%clk
0:04:10]} 14. Nxd4 {[%clk 0:04:11.3]} 14... O-O {[%clk 0:04:06.6]} 15. Nxe6
{[%clk 0:04:08.4]} 15... Bxe6 {[%clk 0:04:04]} 1-0

[Event "Live Chess"]
[Site "Chess.com"]
[Date "2024.06.01"]
[Round "-"]
[White "hapehansen"]
[Black "StoreySniper"]
[Result "0-1"]
[WhiteElo "2268"]
[BlackElo "2546"]
[TimeControl "300"]
[EndTime "15:09:30 PDT"]
[Termination "StoreySniper won by resignation"]

1. c4 {[%clk 0:04:55.8]} 1... g6 {[%clk 0:04:59.2]} 2. Nc3 {[%clk 0:04:53.3]}
2... Bg7 {[%clk 0:04:58.9]} 3. g3 {[%clk 0:04:52.4]} 3... c5 {[%clk 0:04:58.6]}
4. Bg2 {[%clk 0:04:51.9]} 4... Nc6 {[%clk 0:04:58.3]} 5. Nf3 {[%clk 0:04:50.9]}
5... h5 {[%clk 0:04:57.6]} 6. h3 {[%clk 0:04:43.4]} 6... d6 {[%clk 0:04:56.6]}
7. e3 {[%clk 0:04:39.2]} 7... Bxc3 {[%clk 0:04:53.8]} 8. dxc3 {[%clk 0:04:28.4]}
8... Qa5 {[%clk 0:04:50.7]} 9. O-O {[%clk 0:04:24.1]} 9... Be6 {[%clk 0:04:49]}
10. Qe2 {[%clk 0:04:12.4]} 10... Nf6 {[%clk 0:04:42.1]} 11. Ng5 {[%clk
0:04:06.1]} 11... Bd7 {[%clk 0:04:36]} 12. Rd1 {[%clk 0:03:48.4]} 12... Rb8
{[%clk 0:04:23.8]} 13. Kh2 {[%clk 0:03:09.5]} 13... Nh7 {[%clk 0:04:12.3]} 14.
Nxh7 {[%clk 0:02:53.8]} 14... Rxh7 {[%clk 0:04:11]} 15. e4 {[%clk 0:02:50]}
15... Be6 {[%clk 0:04:03.1]} 16. f4 {[%clk 0:02:40.2]} 16... Qc7 {[%clk
0:03:33.1]} 17. Be3 {[%clk 0:02:24.9]} 17... f6 {[%clk 0:03:24.4]} 18. Rd2
{[%clk 0:02:07.3]} 18... a6 {[%clk 0:03:07.6]} 19. a4 {[%clk 0:02:00.9]} 19...
Na5 {[%clk 0:03:06.2]} 20. f5 {[%clk 0:01:49]} 20... Bxc4 {[%clk 0:02:55.7]} 21.
Qf3 {[%clk 0:01:42.9]} 21... g5 {[%clk 0:02:50.5]} 22. e5 {[%clk 0:01:22.1]}
22... dxe5 {[%clk 0:02:43.3]} 23. Rad1 {[%clk 0:01:19.9]} 23... h4 {[%clk
0:02:28.4]} 24. Rd7 {[%clk 0:01:15.6]} 24... hxg3+ {[%clk 0:02:24.5]} 25. Kxg3
{[%clk 0:01:13.4]} 25... Qxd7 {[%clk 0:01:52.1]} 26. Rxd7 {[%clk 0:01:13.3]}
26... Kxd7 {[%clk 0:01:51.6]} 27. Bxc5 {[%clk 0:01:08.7]} 27... Rh4 {[%clk
0:01:30.4]} 28. Qd1+ {[%clk 0:01:01.3]} 28... Ke8 {[%clk 0:01:28.2]} 29. Bf3
{[%clk 0:00:56.4]} 29... Rd8 {[%clk 0:01:10.3]} 30. Bh5+ {[%clk 0:00:54]} 30...
Rxh5 {[%clk 0:01:07.5]} 31. Qxh5+ {[%clk 0:00:51.7]} 31... Kd7 {[%clk 0:01:07]}
32. Bb6 {[%clk 0:00:42.9]} 32... Nc6 {[%clk 0:00:59.2]} 33. Bxd8 {[%clk
0:00:41.1]} 33... Kxd8 {[%clk 0:00:57.8]} 34. Qd1+ {[%clk 0:00:39.4]} 34... Kc7
{[%clk 0:00:55.1]} 35. b3 {[%clk 0:00:38.5]} 35... Bf7 {[%clk 0:00:49.5]} 36. h4
{[%clk 0:00:33.9]} 36... gxh4+ {[%clk 0:00:48.1]} 37. Kxh4 {[%clk 0:00:32.5]}
37... e4 {[%clk 0:00:47.4]} 38. Qe2 {[%clk 0:00:28.9]} 38... Bxb3 {[%clk
0:00:44.2]} 39. Qxe4 {[%clk 0:00:27.4]} 39... Bf7 {[%clk 0:00:39.3]} 40. Qf4+
{[%clk 0:00:24.7]} 40... Ne5 {[%clk 0:00:37.2]} 41. Qd4 {[%clk 0:00:23.5]} 41...
Nf3+ {[%clk 0:00:35.6]} 0-1

[Event "Live Chess"]
[Site "Chess.com"]
[Date "2024.06.01"]
[Round "-"]
[White "booktrunk"]
[Black "BearFromUkraine"]
[Result "1-0"]
[WhiteElo "1450"]
[BlackElo "1027"]
[TimeControl "300"]
[EndTime "15:10:14 PDT"]
[Termination "booktrunk won by resignation"]

1. d4 {[%clk 0:04:55.7]} 1... d5 {[%clk 0:04:58.9]} 2. Nc3 {[%clk 0:04:52.9]}
2... e6 {[%clk 0:04:55.5]} 3. Bf4 {[%clk 0:04:45.8]} 3... Bd6 {[%clk 0:04:49.4]}
4. Bxd6 {[%clk 0:04:40.9]} 4... Qxd6 {[%clk 0:04:48.2]} 5. g3 {[%clk 0:04:09.9]}
5... Nf6 {[%clk 0:04:45]} 6. Bg2 {[%clk 0:04:09.8]} 6... O-O {[%clk 0:04:36.7]}
7. Nf3 {[%clk 0:04:06.4]} 7... Nc6 {[%clk 0:04:31.2]} 8. O-O {[%clk 0:04:02.7]}
8... a6 {[%clk 0:04:29.3]} 9. a3 {[%clk 0:03:51]} 9... Bd7 {[%clk 0:04:26.7]}
10. e3 {[%clk 0:03:47.2]} 10... Rfe8 {[%clk 0:04:23.5]} 11. Re1 {[%clk
0:03:44.7]} 11... Rad8 {[%clk 0:04:13.3]} 12. Ne2 {[%clk 0:03:35.2]} 12... h6
{[%clk 0:04:06.6]} 13. Kh1 {[%clk 0:03:33.3]} 13... e5 {[%clk 0:03:57.9]} 14.
dxe5 {[%clk 0:03:31.3]} 14... Nxe5 {[%clk 0:03:56.5]} 15. Nxe5 {[%clk
0:03:29.1]} 15... Qxe5 {[%clk 0:03:49.9]} 16. Nc3 {[%clk 0:03:27.2]} 16... Bc6
{[%clk 0:03:34.1]} 17. Qe2 {[%clk 0:03:18]} 17... d4 {[%clk 0:03:29.5]} 18. exd4
{[%clk 0:03:16.8]} 18... Bxg2+ {[%clk 0:03:09.8]} 19. Kxg2 {[%clk 0:03:11.7]}
19... Qxe2 {[%clk 0:02:27.9]} 20. Nxe2 {[%clk 0:03:07.5]} 20... c6 {[%clk
0:01:54.9]} 21. c3 {[%clk 0:03:04.3]} 21... Nd5 {[%clk 0:01:52.9]} 22. Ng1
{[%clk 0:02:56.7]} 22... Kf8 {[%clk 0:01:42.1]} 23. Nf3 {[%clk 0:02:52.4]} 23...
Rxe1 {[%clk 0:01:30.7]} 24. Rxe1 {[%clk 0:02:50.2]} 24... Re8 {[%clk 0:01:30.6]}
25. Ne5 {[%clk 0:02:44.2]} 25... Nc7 {[%clk 0:01:04.5]} 26. Nd7+ {[%clk
0:02:36.7]} 26... Kg8 {[%clk 0:00:56.2]} 27. Rxe8+ {[%clk 0:02:34.7]} 27... Nxe8
{[%clk 0:00:56.1]} 28. Nc5 {[%clk 0:02:33.5]} 28... b6 {[%clk 0:00:48.4]} 29.
Nxa6 {[%clk 0:02:30.8]} 29... Nd6 {[%clk 0:00:42.4]} 30. Nb4 {[%clk 0:02:29]}
30... c5 {[%clk 0:00:40.2]} 31. dxc5 {[%clk 0:02:27.1]} 31... b5 {[%clk
0:00:38.6]} 32. c6 {[%clk 0:02:20.8]} 1-0

[Event "Live Chess"]
[Site "Chess.com"]
[Date "2024.06.01"]
[Round "-"]
[White "katoma"]
[Black "f4nomore"]
[Result "1-0"]
[WhiteElo "2057"]
[BlackElo "1252"]
[TimeControl "300"]
[EndTime "15:10:36 PDT"]
[Termination "katoma won by checkmate"]

1. e4 {[%clk 0:04:56.8]} 1... g6 {[%clk 0:04:57.8]} 2. d4 {[%clk 0:04:53.5]}
2... Bg7 {[%clk 0:04:55.9]} 3. Nc3 {[%clk 0:04:49.8]} 3... d6 {[%clk 0:04:54.5]}
4. Bc4 {[%clk 0:04:46.2]} 4... e6 {[%clk 0:04:52.3]} 5. Nge2 {[%clk 0:04:41.4]}
5... Ne7 {[%clk 0:04:49.9]} 6. Be3 {[%clk 0:04:39]} 6... O-O {[%clk 0:04:48.3]}
7. Qd2 {[%clk 0:04:35.2]} 7... d5 {[%clk 0:04:45.6]} 8. exd5 {[%clk 0:04:28.5]}
8... exd5 {[%clk 0:04:43.4]} 9. Bd3 {[%clk 0:04:23.5]} 9... Bf5 {[%clk 0:04:38]}
10. Bg5 {[%clk 0:04:09.8]} 10... Bxd3 {[%clk 0:04:30.7]} 11. Qxd3 {[%clk
0:04:02.4]} 11... Qd6 {[%clk 0:04:28.2]} 12. Bxe7 {[%clk 0:03:56.6]} 12... Qxe7
{[%clk 0:04:26]} 13. Nxd5 {[%clk 0:03:54.5]} 13... Qd6 {[%clk 0:04:17.5]} 14.
Ndc3 {[%clk 0:03:40.6]} 14... Nc6 {[%clk 0:04:06.1]} 15. O-O-O {[%clk
0:03:26.4]} 15... Bh6+ {[%clk 0:03:53]} 16. Kb1 {[%clk 0:03:22.7]} 16... Rad8
{[%clk 0:03:35.5]} 17. Ne4 {[%clk 0:03:17]} 17... Qe7 {[%clk 0:03:08.6]} 18. Qf3
{[%clk 0:03:00.7]} 18... Bg7 {[%clk 0:02:57.5]} 19. c3 {[%clk 0:02:50.2]} 19...
f5 {[%clk 0:02:45.8]} 20. Nc5 {[%clk 0:02:42.7]} 20... b6 {[%clk 0:02:40.3]} 21.
Qxc6 {[%clk 0:02:31.2]} 21... bxc5 {[%clk 0:02:32.1]} 22. Rhe1 {[%clk
0:02:28.8]} 22... cxd4 {[%clk 0:02:12.5]} 23. Nxd4 {[%clk 0:02:23.2]} 23... Qf7
{[%clk 0:01:50.7]} 24. Qe6 {[%clk 0:02:11.8]} 24... Qxe6 {[%clk 0:01:47.5]} 25.
Nxe6 {[%clk 0:02:09.1]} 25... Rxd1+ {[%clk 0:01:45.3]} 26. Rxd1 {[%clk
0:02:08.2]} 26... Re8 {[%clk 0:01:44]} 27. Nxg7 {[%clk 0:02:03]} 27... Kxg7
{[%clk 0:01:41.9]} 28. Rd7+ {[%clk 0:02:01.8]} 28... Kh6 {[%clk 0:01:40.5]} 29.
Kc2 {[%clk 0:01:57.5]} 29... Re2+ {[%clk 0:01:38.7]} 30. Rd2 {[%clk 0:01:56]}
30... Re7 {[%clk 0:01:33.9]} 31. a4 {[%clk 0:01:54]} 31... a6 {[%clk 0:01:32.1]}
32. b4 {[%clk 0:01:51.8]} 32... c6 {[%clk 0:01:30.2]} 33. c4 {[%clk 0:01:48.3]}
33... Kg5 {[%clk 0:01:27.7]} 34. Kc3 {[%clk 0:01:44.1]} 34... h5 {[%clk
0:01:25.3]} 35. b5 {[%clk 0:01:37.1]} 35... cxb5 {[%clk 0:01:22.4]} 36. cxb5
{[%clk 0:01:33.5]} 36... axb5 {[%clk 0:01:20.2]} 37. axb5 {[%clk 0:01:31.9]}
37... Rc7+ {[%clk 0:01:06.8]} 38. Kb4 {[%clk 0:01:30.7]} 38... Rb7 {[%clk
0:01:04.4]} 39. Ka5 {[%clk 0:01:28.4]} 39... Ra7+ {[%clk 0:01:00.5]} 40. Kb6
{[%clk 0:01:26.3]} 40... Ra3 {[%clk 0:00:54.7]} 41. Rc2 {[%clk 0:01:20.8]} 41...
Rb3 {[%clk 0:00:47]} 42. Kc6 {[%clk 0:01:19.7]} 42... Ra3 {[%clk 0:00:42.7]} 43.
b6 {[%clk 0:01:18]} 43... Ra6 {[%clk 0:00:41]} 44. Kc7 {[%clk 0:01:16.1]} 44...
Ra8 {[%clk 0:00:33.3]} 45. b7 {[%clk 0:01:14.5]} 45... Ra7 {[%clk 0:00:31.6]}
46. Kc8 {[%clk 0:01:13.4]} 46... Rxb7 {[%clk 0:00:25]} 47. Kxb7 {[%clk
0:01:11.7]} 47... Kg4 {[%clk 0:00:21.7]} 48. Kc6 {[%clk 0:01:09.4]} 48... f4
{[%clk 0:00:20.2]} 49. Kd5 {[%clk 0:01:07.8]} 49... g5 {[%clk 0:00:19.2]} 50.
Ke4 {[%clk 0:01:03.7]} 50... h4 {[%clk 0:00:18]} 51. f3+ {[%clk 0:01:00.1]}
51... Kh5 {[%clk 0:00:13.6]} 52. Kf5 {[%clk 0:00:58.9]} 52... Kh6 {[%clk
0:00:11.4]} 53. Rc6+ {[%clk 0:00:57.7]} 53... Kh5 {[%clk 0:00:10.1]} 54. h3
{[%clk 0:00:49]} 54... g4 {[%clk 0:00:02.1]} 55. fxg4# {[%clk 0:00:47.7]} 1-0

[Event "Live Chess"]
[Site "Chess.com"]
[Date "2024.06.01"]
[Round "-"]
[White "cymbalshift"]
[Black "SavagePawn7"]
[Result "1-0"]
[WhiteElo "1650"]
[BlackElo "659"]
[TimeControl "300"]
[EndTime "15:10:39 PDT"]
[Termination "cymbalshift won by resignation"]

1. d4 {[%clk 0:04:57.8]} 1... e5 {[%clk 0:04:57]} 2. dxe5 {[%clk 0:04:56.7]}
2... d6 {[%clk 0:04:55.3]} 3. exd6 {[%clk 0:04:54.4]} 3... Bxd6 {[%clk
0:04:53.8]} 4. Nf3 {[%clk 0:04:53]} 4... Nc6 {[%clk 0:04:51.4]} 5. e3 {[%clk
0:04:47.5]} 5... Bg4 {[%clk 0:04:42]} 6. Be2 {[%clk 0:04:46.1]} 6... Qe7 {[%clk
0:04:36.8]} 7. h3 {[%clk 0:04:34.4]} 7... Bxf3 {[%clk 0:04:33.6]} 8. Bxf3 {[%clk
0:04:33.1]} 8... O-O-O {[%clk 0:04:31.3]} 9. Qe2 {[%clk 0:04:12.5]} 9... Nf6
{[%clk 0:04:27.7]} 10. Bxc6 {[%clk 0:03:58.6]} 10... bxc6 {[%clk 0:04:24.4]} 11.
O-O {[%clk 0:03:57.6]} 11... Ne4 {[%clk 0:03:57]} 12. Qa6+ {[%clk 0:03:43]}
12... Kb8 {[%clk 0:03:53.8]} 13. Qxc6 {[%clk 0:03:37.2]} 13... Nf6 {[%clk
0:03:35.1]} 14. Nc3 {[%clk 0:03:24.7]} 14... Qe5 {[%clk 0:03:27.2]} 15. f4
{[%clk 0:03:17.7]} 15... Qh5 {[%clk 0:03:13.6]} 16. a4 {[%clk 0:02:55.4]} 16...
Rhe8 {[%clk 0:03:06]} 17. Qb5+ {[%clk 0:02:41.3]} 17... Ka8 {[%clk 0:02:59.5]}
18. Qxh5 {[%clk 0:02:23.1]} 18... Nxh5 {[%clk 0:02:57.6]} 19. Nb5 {[%clk
0:01:58.1]} 19... Bc5 {[%clk 0:02:46.5]} 20. Nxc7+ {[%clk 0:01:53.4]} 1-0

[Event "Live Chess"]
[Site "Chess.com"]
[Date "2024.06.01"]
[Round "-"]
[White "MagnersCarlsberg2870"]
[Black "oscalik"]
[Result "0-1"]
[WhiteElo "1762"]
[BlackElo "2318"]
[TimeControl "300"]
[EndTime "15:10:42 PDT"]
[Termination "oscalik won by resignation"]

1. Nf3 {[%clk 0:04:56.6]} 1... Nf6 {[%clk 0:04:57.7]} 2. g3 {[%clk 0:04:55.4]}
2... d5 {[%clk 0:04:55.6]} 3. Bg2 {[%clk 0:04:53.8]} 3... e6 {[%clk 0:04:55.1]}
4. d3 {[%clk 0:04:52.8]} 4... Be7 {[%clk 0:04:54]} 5. Nbd2 {[%clk 0:04:51.6]}
5... O-O {[%clk 0:04:53.6]} 6. O-O {[%clk 0:04:50.7]} 6... c5 {[%clk 0:04:53.1]}
7. e4 {[%clk 0:04:49.6]} 7... Nc6 {[%clk 0:04:52.7]} 8. Re1 {[%clk 0:04:46.5]}
8... b5 {[%clk 0:04:51.7]} 9. e5 {[%clk 0:04:45.4]} 9... Nd7 {[%clk 0:04:51.2]}
10. Nf1 {[%clk 0:04:43.6]} 10... a5 {[%clk 0:04:50.5]} 11. Bf4 {[%clk
0:04:42.4]} 11... a4 {[%clk 0:04:50.1]} 12. h4 {[%clk 0:04:38]} 12... Qb6 {[%clk
0:04:48.4]} 13. Ne3 {[%clk 0:04:19.3]} 13... Bb7 {[%clk 0:04:28.8]} 14. Ng5
{[%clk 0:04:17.8]} 14... h6 {[%clk 0:04:23.7]} 15. Nxe6 {[%clk 0:04:10.1]} 15...
fxe6 {[%clk 0:04:19.1]} 16. Qh5 {[%clk 0:04:09.2]} 16... Rf7 {[%clk 0:03:40.1]}
17. Nxd5 {[%clk 0:04:05.4]} 17... exd5 {[%clk 0:03:33.7]} 18. Bxd5 {[%clk
0:04:03.3]} 18... Nd8 {[%clk 0:03:19.1]} 19. Bxf7+ {[%clk 0:03:55]} 19... Nxf7
{[%clk 0:03:17.4]} 20. e6 {[%clk 0:03:54]} 20... Qc6 {[%clk 0:03:06.1]} 21.
Qxf7+ {[%clk 0:03:40.4]} 21... Kh8 {[%clk 0:02:58]} 22. Re4 {[%clk 0:03:38.9]}
22... Nf6 {[%clk 0:02:52.1]} 23. Bxh6 {[%clk 0:03:36.2]} 23... Rg8 {[%clk
0:02:42.6]} 24. Qxe7 {[%clk 0:03:33.1]} 24... Nxe4 {[%clk 0:02:37.2]} 25. Bxg7+
{[%clk 0:03:26.7]} 25... Rxg7 {[%clk 0:02:34]} 26. Qf8+ {[%clk 0:03:25.5]} 26...
Kh7 {[%clk 0:02:27.5]} 27. Qf5+ {[%clk 0:03:23]} 27... Kg8 {[%clk 0:02:24.2]}
28. e7 {[%clk 0:03:05.2]} 28... Nf6 {[%clk 0:02:10.7]} 29. e8=Q+ {[%clk
0:02:59.1]} 29... Nxe8 {[%clk 0:02:08.3]} 30. f3 {[%clk 0:02:50.7]} 30... Rxg3+
{[%clk 0:01:46.4]} 31. Kh2 {[%clk 0:02:47.1]} 31... Qxf3 {[%clk 0:01:27.2]} 32.
Qe6+ {[%clk 0:02:45.2]} 32... Kh7 {[%clk 0:01:22.1]} 33. Qe7+ {[%clk 0:02:40.7]}
33... Ng7 {[%clk 0:01:21.1]} 0-1